bitfinex-derivatives/quotes_ETHF0:USTF0_20250331
["timestamp","ask_amount","ask_price","bid_price","bid_amount"]
[1743429210895,0.00825468,1816.1,1816.0,1.10151]
[1743429211090,0.00825468,1816.1,1816.0,3.19551]
[1743429211296,21.60951497,1816.9,1816.1,2.75363]
[1743429211297,23.77603497,1816.9,1816.1,2.75363]
[1743429211490,27.04342497,1816.9,1816.7,3.2078]
[1743429211687,21.02343497,1816.9,1816.8,1.10103]
[1743429211912,16.33845206,1816.9,1816.8,1.10103]
[1743429212095,1.18190206,1816.9,1816.8,5.69503]
[1743429212290,8.04039267,1817.1,1817.0,1.10091]
[1743429212495,1.10051,1817.7,1817.3,1.1007]
[1743429212801,8.04039267,1817.8,1817.1,1.10079]
[1743429212802,0.00825468,1817.2,1817.1,1.10079]
[1743429213301,0.00825468,1817.2,1817.0,4.30869]
[1743429213598,0.00825468,1817.2,1817.0,3.2078]
[1743429213793,0.00825468,1817.2,1817.1,1.10085]
[1743429214101,0.00825468,1817.2,1817.0,4.30868]
[1743429214500,0.00825468,1817.2,1816.8,1.101]
[1743429214501,1.10908468,1817.2,1816.8,1.101]
[1743429214798,5.5053,1817.1,1816.7,0.00825468]
[1743429215001,3.39837,1817.1,1816.8,1.10099]
[1743429215191,3.39838,1817.1,1816.7,0.00825468]
[1743429215397,1.10092,1817.0,1816.7,0.00825468]
[1743429215595,2.2975,1816.9,1816.7,2.22405468]
[1743429215803,2.2975,1816.9,1816.8,1.10103]
[1743429216395,2.2975,1816.9,1816.7,3.32510468]
[1743429216593,3.39847,1816.9,1816.7,3.32510468]
[1743429216796,1.10103,1816.8,1816.7,0.00825468]
[1743429216996,3.28983,1816.8,1816.7,0.00825468]
[1743429217206,1.10111,1816.7,1816.2,4.905]
[1743429217397,3.28997,1816.6,1816.4,1.10122]
[1743429217593,2.1888,1816.6,1816.3,2.2121]
[1743429217805,2.2224,1817.1,1816.5,3.2078]
[1743429218012,5.3966,1817.1,1816.5,8.1268]
[1743429218304,1.10106,1816.8,1816.6,1.10938468]
[1743429218502,2.1888,1816.7,1816.6,1.10938468]
[1743429218700,0.00825468,1817.2,1816.6,5.26110468]
[1743429218905,1.10905468,1817.2,1817.0,1.10088]
[1743429219098,3.29785468,1817.2,1817.0,1.10088]
[1743429219414,2.19705468,1817.2,1816.9,2.2121]
[1743429219600,2.19705468,1817.2,1817.1,1.10085]
[1743429220201,0.00825468,1817.2,1817.1,1.10085]
[1743429220404,0.00825468,1817.2,1817.1,3.30325]
[1743429221808,1.10904468,1817.2,1816.9,4.934]
[1743429221993,2.13935468,1817.2,1816.6,3.21605468]
[1743429222305,2.13935468,1817.2,1816.9,1.10094]
[1743429222501,2.13935468,1817.2,1817.1,1.10085]
[1743429222705,3.24014468,1817.2,1817.1,1.10085]
[1743429223003,1.10086,1817.1,1816.9,3.22792]
[1743429223201,2.13935468,1817.2,1816.9,2.127]
[1743429223399,1.10091,1817.0,1816.7,4.908]
[1743429223605,1.10091,1817.0,1816.9,1.10097]
[1743429223802,1.10098,1816.9,1816.7,2.127]
[1743429224008,2.76025468,1817.2,1816.8,1.10098]
[1743429224009,3.2078,1817.1,1816.8,1.10098]
[1743429224207,1.10095,1817.0,1816.8,1.10098]
[1743429224408,1.10109,1816.7,1816.6,0.00825468]
[1743429225305,1.10109,1816.7,1816.6,1.10940468]
[1743429225512,1.10109,1816.7,1816.6,0.00825468]
[1743429225705,4.30889,1816.7,1816.6,0.00825468]
[1743429225907,4.30889,1816.7,1816.0,3.2078]
[1743429225908,2.75292,1816.6,1816.0,3.2078]
[1743429226210,1.10147,1816.1,1816.0,1.10149]
[1743429226512,2.7532,1816.4,1815.9,2.1022]
[1743429226805,1.10126,1816.5,1816.3,1.10127]
[1743429227118,2.1916,1816.6,1816.2,1.10139]
[1743429227119,0.00825468,1816.3,1816.2,1.10139]
[1743429227402,0.00825468,1816.3,1816.2,6.41139]
[1743429228007,0.00825468,1816.3,1816.2,8.91139]
[1743429228405,2.3047,1816.9,1816.8,1.10103]
[1743429228703,2.3047,1816.9,1816.3,5.96106]
[1743429229009,1.10106,1816.8,1816.6,1.1011]
[1743429229223,1.10108,1816.8,1816.7,1.10108]
[1743429229506,3.40571,1816.9,1816.8,1.10103]
[1743429229705,2.31295468,1816.9,1816.4,5.06808]
[1743429230004,2.31295468,1816.9,1816.4,2.75319]
[1743429230408,1.10112,1816.7,1816.6,1.10111]
[1743429230609,5.52075468,1816.9,1816.7,1.10106]
[1743429230610,1.10106,1816.8,1816.7,1.10106]
[1743429230799,2.31295468,1816.9,1816.8,1.10103]
[1743429231496,2.31295468,1816.9,1816.7,1.10104]
[1743429231497,5.52075468,1816.9,1816.7,1.10104]
[1743429231707,1.10107,1816.8,1816.4,8.27588]
[1743429231903,1.10107,1816.8,1816.7,1.10106]
[1743429232323,3.41394468,1816.9,1816.8,1.10103]
[1743429232613,3.41392468,1816.9,1816.8,1.10103]
[1743429232807,2.31295468,1816.9,1816.8,1.10103]
[1743429233309,0.00825468,1816.9,1816.8,1.10103]
[1743429234209,0.00825468,1816.9,1816.8,4.30883]
[1743429234422,0.00825468,1816.9,1816.8,6.80883]
[1743429235005,0.00825468,1816.9,1816.8,4.30883]
[1743429236309,4.68e-06,1816.9,1816.8,7.31469137]
[1743429236612,3.2078,1817.8,1817.7,1.10048]
[1743429236810,2.2916,1818.3,1818.2,1.10018]
[1743429237105,1.10024,1818.1,1817.8,3.2078]
[1743429237312,1.10027,1818.1,1817.7,9.75437]
[1743429237529,2.1772,1818.0,1817.9,1.10034]
[1743429238212,3.27755,1818.0,1817.8,0.00825468]
[1743429238413,2.1772,1818.0,1817.8,0.00825468]
[1743429238715,2.1772,1818.0,1817.8,1.10863468]
[1743429238911,1.10036,1817.9,1817.8,1.10863468]
[1743429239117,1.10036,1817.9,1817.8,0.00825468]
[1743429239507,2.1772,1818.0,1817.8,0.00825468]
[1743429239714,2.1772,1818.0,1817.9,1.10036]
[1743429239917,0.00825468,1818.1,1818.0,1.1003]
[1743429240212,0.00825468,1818.1,1818.0,4.3081]
[1743429240610,0.00825468,1818.1,1818.0,6.8081]
[1743429240917,4.68e-06,1818.1,1818.0,6.8081]
[1743429241210,4.68e-06,1818.1,1818.0,6.5227]
[1743429241921,4.68e-06,1818.1,1818.0,9.0227]
[1743429242113,4.68e-06,1818.1,1818.0,6.5227]
[1743429242315,4.68e-06,1818.1,1818.0,4.3081]
[1743429243007,2.23630468,1818.1,1818.0,9.2551]
[1743429244123,2.23630468,1818.1,1818.0,1.1003]
[1743429244312,4.68e-06,1818.1,1818.0,4.3081]
[1743429244512,4.68e-06,1818.1,1818.0,9.2641]
[1743429244908,3.2078,1819.3,1819.0,1.09968]
[1743429245121,2.1682,1819.2,1819.0,1.09964]
[1743429245315,2.1682,1819.2,1819.0,1.09966]
[1743429245515,3.2078,1819.1,1818.6,1.09992]
[1743429245715,3.2078,1819.1,1818.5,3.2078]
[1743429245920,2.1682,1819.2,1818.8,1.09979]
[1743429246220,0.00825468,1819.0,1818.7,8.1748]
[1743429246425,0.00825468,1819.0,1818.9,1.09976]
[1743429246815,0.00825468,1819.0,1818.9,4.30756]
[1743429247314,4.68e-06,1819.0,1818.9,6.80756]
[1743429247719,4.68e-06,1819.0,1818.9,4.30756]
[1743429247916,4.68e-06,1819.0,1818.8,3.33209]
[1743429248113,4.68e-06,1819.0,1818.7,3.2078]
[1743429248308,2.27480468,1819.0,1818.8,1.09976]
[1743429248512,4.68e-06,1819.0,1818.9,6.41426]
[1743429249007,4.68e-06,1819.0,1818.9,3.20646]
[1743429249214,4.68e-06,1819.0,1818.6,3.21605468]
[1743429249507,3.2078,1818.9,1818.1,3.2078]
[1743429249719,5.00200468,1819.0,1818.5,1.09998]
[1743429249720,3.37465,1818.8,1818.5,1.09998]
[1743429249917,3.37465,1818.8,1818.3,1.10009]
[1743429249918,1.09996,1818.6,1818.3,1.10009]
[1743429250121,2.2748,1818.5,1818.4,1.10006]
[1743429250417,2.2748,1818.5,1818.1,5.3145]
[1743429250720,2.2748,1818.5,1818.3,1.10007]
[1743429250920,1.09979,1818.9,1818.6,1.09993]
[1743429251117,4.68e-06,1819.0,1818.5,5.95781]
[1743429251318,4.68e-06,1819.0,1818.9,1.09976]
[1743429251711,4.68e-06,1819.0,1818.9,4.30756]
[1743429252017,4.68e-06,1819.0,1818.9,6.80756]
[1743429252219,4.68e-06,1819.0,1818.9,9.00106]
[1743429252919,4.68e-06,1819.0,1818.9,9.01626]
[1743429253126,4.68e-06,1819.0,1818.9,11.54806]
[1743429253623,4.68e-06,1819.0,1818.9,8.34026]
[1743429253821,4.68e-06,1819.0,1818.9,11.54806]
[1743429254017,4.68e-06,1819.0,1818.9,1.09976]
[1743429254220,1.09984,1818.8,1818.2,11.00418]
[1743429254528,2.2514,1818.7,1818.5,1.09998]
[1743429254825,3.2078,1818.6,1818.2,3.2078]
[1743429255020,2.2228,1818.5,1818.4,1.10002]
[1743429255521,2.2876,1818.7,1818.6,1.09994]
[1743429256616,6.59531,1818.7,1818.2,5.95811]
[1743429256938,2.2876,1818.7,1818.6,1.09994]
[1743429257425,3.38752,1818.7,1818.2,8.22221]
[1743429257614,6.59532,1818.7,1818.5,1.09998]
[1743429257821,6.59531,1818.7,1818.2,3.2078]
[1743429258019,5.4954,1818.7,1818.5,1.09997]
[1743429258226,2.135,1818.6,1818.5,1.09997]
[1743429258427,7.19,1818.6,1818.1,0.00825468]
[1743429258636,1.10029,1818.1,1817.4,3.2078]
[1743429258828,4.3388,1818.0,1817.9,1.10036]
[1743429259030,2.2038,1818.6,1818.0,2.75077]
[1743429259223,4.3388,1818.6,1818.5,1.1]
[1743429259417,4.3388,1818.6,1818.3,1.10008]
[1743429259621,7.5466,1818.6,1817.9,3.2078]
[1743429259818,7.55485468,1818.6,1818.3,0.00825468]
[1743429260042,3.2078,1818.4,1818.3,0.00825468]
[1743429260220,3.2078,1818.4,1818.3,1.10837468]
[1743429260415,3.2078,1818.4,1818.3,0.00825468]
[1743429260625,3.2078,1818.4,1817.9,3.2078]
[1743429260626,6.80786,1818.4,1818.0,1.10028]
[1743429260827,2.3096,1818.3,1817.9,3.2078]
[1743429261030,3.40972,1818.3,1818.0,1.10028]
[1743429261220,1.10021,1818.2,1817.7,8.2798]
[1743429261423,2.3096,1818.1,1817.6,2.3007]
[1743429261617,5.41985468,1818.6,1817.8,3.2078]
[1743429261929,2.3096,1818.0,1817.8,4.3082]
[1743429262225,2.3096,1818.0,1817.9,1.10036]
[1743429263125,2.1517,1818.5,1818.4,1.10006]
[1743429263319,4.3612,1818.5,1818.4,4.30786]
[1743429263524,0.00825468,1818.6,1818.5,1.1]
[1743429263722,0.00825468,1818.6,1818.5,3.3775]
[1743429264224,4.5036,1819.0,1818.9,1.09976]
[1743429264422,4.5036,1819.0,1818.9,4.30756]
[1743429264724,4.5036,1819.0,1818.9,1.09976]
[1743429265216,4.5036,1819.0,1818.8,1.09978]
[1743429265425,4.5036,1819.0,1818.9,1.09976]
[1743429266426,0.00825468,1819.1,1819.0,1.0997]
[1743429267621,0.00825468,1819.1,1819.0,3.2329]
[1743429268633,0.00825468,1819.1,1818.9,4.30754]
[1743429268823,0.00825468,1819.1,1818.8,0.00825468]
[1743429269021,5.38292468,1819.1,1818.8,0.00825468]
[1743429269220,2.1705,1819.0,1818.9,1.09973]
[1743429269423,4.3327,1819.0,1818.9,1.09973]
[1743429270430,2.1622,1819.0,1818.9,4.30753]
[1743429271124,2.1622,1819.0,1818.9,6.45723]
[1743429271325,0.00825468,1819.1,1819.0,1.0997]
[1743429271525,4.68e-06,1819.1,1819.0,3.2494]
[1743429271934,4.68e-06,1819.1,1819.0,1.0997]
[1743429272228,4.68e-06,1819.1,1819.0,3.3477]
[1743429272825,4.30685,1820.1,1819.7,1.09928]
[1743429273027,2.2634,1820.0,1819.6,1.09929]
[1743429273333,4.30697,1819.9,1819.7,1.09928]
[1743429273625,3.2078,1819.9,1819.4,1.09942]
[1743429273825,3.2078,1819.9,1819.3,1.09948]
[1743429273826,1.09938,1819.6,1819.3,1.09948]
[1743429274127,1.09949,1819.4,1819.1,3.2078]
[1743429274426,1.09949,1819.4,1819.0,5.112]
[1743429274427,1.0994,1819.5,1819.0,7.86122]
[1743429274624,5.48065468,1819.8,1819.1,1.0996]
[1743429274625,3.2078,1819.4,1819.1,1.0996]
[1743429274832,2.1075,1819.3,1819.2,1.09958]
[1743429275030,2.1075,1819.3,1819.1,1.0996]
[1743429275235,2.1075,1819.3,1819.1,1.09962]
[1743429275537,2.1075,1819.3,1819.2,1.09958]
[1743429275925,4.4033,1819.3,1819.2,1.09958]
[1743429276318,4.4033,1819.3,1819.0,2.1894]
[1743429276523,4.4033,1819.3,1819.2,1.09958]
[1743429276926,4.4033,1819.3,1819.0,5.3972]
[1743429277224,4.4033,1819.3,1818.9,1.09974]
[1743429277225,7.6111,1819.3,1818.9,1.09974]
[1743429277625,1.09973,1819.0,1818.8,1.10804468]
[1743429277828,2.2215,1818.9,1818.8,1.10804468]
[1743429278023,2.2215,1818.9,1818.8,1.10807468]
[1743429280529,3.32126,1818.9,1818.8,1.10807468]
[1743429280724,2.2215,1818.9,1818.8,1.10807468]
[1743429281327,2.2215,1818.9,1818.8,3.22007468]
[1743429281531,1.09965,1819.1,1818.8,3.22007468]
[1743429281532,7.1825,1819.3,1818.8,4.86980468]
[1743429281729,2.1029,1819.2,1819.1,1.09964]
[1743429281925,3.2078,1819.6,1819.3,1.09952]
[1743429282131,5.3107,1819.6,1819.5,1.0994]
[1743429282741,6.41004,1819.6,1819.5,1.0994]
[1743429282934,5.3107,1819.6,1819.2,5.95661]
[1743429283234,3.20228,1819.6,1819.5,1.0994]
[1743429283829,2.1029,1819.6,1819.5,1.0994]
[1743429284026,1.09935,1819.6,1819.5,1.09937]
[1743429284232,3.41115,1819.6,1819.5,1.09937]
[1743429284636,1.09959,1819.2,1819.1,1.0996]
[1743429284928,3.2078,1819.4,1819.3,1.09952]
[1743429285134,1.09953,1819.3,1819.2,1.09954]
[1743429285327,3.2078,1819.4,1819.0,5.95705]
[1743429285526,2.0913,1819.5,1819.4,1.09946]
[1743429285728,2.0913,1819.5,1819.1,2.2523]
[1743429285931,5.2991,1819.5,1819.0,2.74924]
[1743429286127,1.0995,1819.4,1819.3,1.0995]
[1743429286328,1.09952,1819.3,1819.2,1.09953]
[1743429286525,3.23132,1819.3,1819.2,1.09953]
[1743429286727,2.1318,1819.3,1818.9,5.95716]
[1743429287036,1.09966,1819.1,1819.0,1.09966]
[1743429287334,1.0997,1819.0,1818.9,1.09971]
[1743429287538,1.09976,1818.9,1818.8,1.10804468]
[1743429287926,4.30756,1818.9,1818.8,1.10807468]
[1743429288327,4.30756,1818.9,1818.8,0.00825468]
[1743429288532,1.09983,1818.8,1818.5,2.75]
[1743429288735,1.09983,1818.8,1818.7,1.09982]
[1743429289137,1.09989,1818.7,1818.6,1.0999]
[1743429289337,8.18795,1818.7,1818.1,8.70881]
[1743429289629,8.18795,1818.7,1818.2,5.96651468]
[1743429289630,3.21605468,1818.6,1818.2,5.96651468]
[1743429289836,0.00825468,1818.6,1818.5,1.1]
[1743429290144,1.10003,1818.5,1818.4,1.10002]
[1743429290336,0.00825468,1818.6,1818.5,1.1]
[1743429290925,1.10819468,1818.6,1818.5,1.1]
[1743429291134,0.00825468,1818.6,1818.2,0.00825468]
[1743429291331,1.10002,1818.5,1818.4,1.10004]
[1743429291533,3.21605468,1818.6,1818.5,1.1]
[1743429291734,0.00825468,1818.6,1818.5,1.1]
[1743429292038,1.10004,1818.5,1818.4,1.10003]
[1743429292428,0.00825468,1818.6,1818.2,2.28545468]
[1743429292632,3.21605468,1818.6,1818.2,0.00825468]
[1743429292926,1.10012,1818.3,1818.2,0.00825468]
[1743429293130,1.10011,1818.4,1818.3,1.10012]
[1743429293330,1.10012,1818.3,1818.2,1.10838468]
[1743429293733,3.21605468,1818.6,1818.2,2.75864468]
[1743429293936,1.1001,1818.4,1818.3,1.10009]
[1743429294135,3.21605468,1818.6,1818.2,4.96919468]
[1743429294332,4.31605468,1818.6,1818.5,1.1]
[1743429294536,1.10002,1818.5,1818.4,1.10002]
[1743429294729,2.75002,1818.5,1818.2,0.00825468]
[1743429294931,1.10012,1818.3,1818.2,0.00825468]
[1743429295342,2.75051,1818.2,1817.8,4.30818]
[1743429295537,1.10036,1817.9,1817.8,1.10038]
[1743429295836,1.10046,1817.8,1817.7,1.10044]
[1743429296040,1.10039,1817.9,1817.8,1.10036]
[1743429296236,3.2078,1818.0,1817.6,2.2105]
[1743429296538,3.2078,1818.0,1817.5,3.2078]
[1743429296539,4.30822,1817.8,1817.7,0.00825468]
[1743429297543,3.2078,1817.8,1817.7,1.10873468]
[1743429297737,1.10042,1817.8,1817.7,1.10873468]
[1743429297931,2.2988,1817.9,1817.8,1.10042]
[1743429298240,3.31924,1818.1,1818.0,1.1003]
[1743429298439,2.219,1818.1,1818.0,1.1003]
[1743429298739,3.31924,1818.1,1818.0,1.1003]
[1743429298929,5.3896,1818.4,1818.3,1.10012]
[1743429299129,2.1818,1818.4,1818.3,1.10012]
[1743429299337,3.28186,1818.4,1818.3,1.10012]
[1743429299534,1.10014,1818.3,1818.2,1.10014]
[1743429299935,1.10018,1818.2,1818.1,1.1002]
[1743429300135,8.13977,1818.4,1817.8,2.1542]
[1743429300433,5.95827,1818.2,1817.7,0.00825468]
[1743429300633,1.10034,1818.0,1817.9,1.10033]
[1743429300839,1.10033,1818.0,1817.9,1.10033]
[1743429301041,1.10036,1817.9,1817.8,3.25459]
[1743429301240,1.10032,1818.0,1817.9,1.10032]
[1743429302039,7.0964,1818.1,1817.7,0.00825468]
[1743429302040,2.1364,1818.1,1818.0,1.1003]
[1743429302646,3.23664,1818.1,1818.0,1.1003]
[1743429302840,1.10039,1817.9,1817.8,1.10039]
[1743429303141,1.10042,1817.8,1817.7,3.35427468]
[1743429303348,1.10042,1817.8,1817.7,1.10867468]
[1743429303542,3.2078,1818.0,1817.7,0.00825468]
[1743429303842,4.3081,1818.0,1817.9,1.10036]
[1743429304043,2.1364,1818.1,1818.0,1.1003]
[1743429304249,4.4171,1818.1,1818.0,1.1003]
[1743429304450,5.51738,1818.1,1818.0,1.1003]
[1743429304741,4.4171,1818.1,1818.0,1.1003]
[1743429305141,3.21605468,1818.6,1818.1,2.75051]
[1743429305343,2.2197,1818.4,1818.2,2.241]
[1743429305546,1.10039,1817.9,1817.7,0.00825468]
[1743429305843,1.10028,1818.1,1818.0,1.10026]
[1743429306049,1.10028,1818.1,1817.7,5.00045468]
[1743429306050,1.10042,1817.8,1817.7,0.00825468]
[1743429306343,3.2909,1818.0,1817.9,1.10036]
[1743429306546,1.10036,1817.9,1817.8,2.241]
[1743429306743,2.2197,1817.9,1817.8,1.10042]
[1743429307049,2.2197,1817.9,1817.8,3.34142]
[1743429307351,2.1658,1818.3,1818.1,1.10021]
[1743429307649,1.10034,1818.0,1817.9,1.10033]
[1743429308042,1.10036,1817.9,1817.8,3.34138]
[1743429308242,3.38956,1817.9,1817.8,3.34138]
[1743429308445,2.2892,1817.9,1817.8,3.34138]
[1743429308650,4.91612,1818.3,1818.2,1.10018]
[1743429308651,2.1658,1818.3,1818.2,1.10018]
[1743429308837,4.4798,1818.4,1818.2,1.10015]
[1743429309043,1.10024,1818.1,1818.0,3.26794]
[1743429309244,1.10021,1818.2,1818.1,1.10024]
[1743429309443,1.10024,1818.2,1818.1,1.10022]
[1743429309648,2.2892,1818.3,1818.0,2.75076]
[1743429309842,1.10018,1818.2,1818.1,3.26789]
[1743429310040,3.21605468,1818.6,1818.1,5.3755]
[1743429310243,3.21605468,1818.6,1818.5,1.1]
[1743429310244,0.00825468,1818.6,1818.5,1.1]
[1743429310450,0.00825468,1818.6,1818.5,3.2677]
[1743429310647,4.68e-06,1818.6,1818.5,10.7197]
[1743429311146,4.68e-06,1818.6,1818.5,8.2197]
[1743429311341,4.68e-06,1818.6,1818.5,3.2677]
[1743429312551,4.68e-06,1818.6,1818.5,5.7677]
[1743429313446,4.68e-06,1818.6,1818.5,3.2677]
[1743429313652,4.68e-06,1818.6,1818.5,5.7677]
[1743429314757,4.68e-06,1818.6,1818.5,3.2677]
[1743429315354,1.1,1818.5,1818.4,4.30784]
[1743429315545,3.18833,1818.5,1818.3,3.37669]
[1743429315744,1.10014,1818.3,1817.8,2.75107]
[1743429315953,5.2961,1818.2,1817.8,5.02767]
[1743429316251,5.2961,1818.2,1818.1,1.10024]
[1743429316457,6.39628,1818.2,1817.9,2.2766]
[1743429316656,6.39628,1818.2,1818.0,1.10029]
[1743429316859,1.10024,1818.1,1818.0,1.10029]
[1743429317148,2.0883,1818.1,1818.0,1.1003]
[1743429317351,2.1669,1818.4,1818.3,1.10012]
[1743429317352,3.2078,1818.4,1818.3,1.10012]
[1743429317551,2.1761,1818.4,1818.3,1.10012]
[1743429317752,2.2554,1818.5,1818.1,4.87437]
[1743429317753,2.2554,1818.5,1818.4,1.10006]
[1743429317952,4.4315,1818.5,1818.4,1.10006]
[1743429318149,2.1761,1818.5,1818.4,1.10006]
[1743429318358,3.20780468,1818.6,1818.5,1.1]
[1743429318359,4.68e-06,1818.6,1818.5,1.1]
[1743429318558,2.17610468,1818.6,1818.5,1.1]
[1743429318759,4.68e-06,1818.6,1818.5,1.1]
[1743429319156,4.68e-06,1818.6,1818.5,4.3078]
[1743429319357,4.68e-06,1818.6,1818.5,1.1]
[1743429319553,4.68e-06,1818.6,1818.5,6.4316]
[1743429321249,4.68e-06,1818.6,1818.5,3.2238]
[1743429322051,4.68e-06,1818.6,1818.5,1.1]
[1743429322758,2.09160468,1818.6,1818.5,1.1]
[1743429323861,4.68e-06,1818.6,1818.5,1.1]
[1743429324159,2.10240468,1818.6,1818.5,1.1]
[1743429324955,5.31020468,1818.6,1818.5,1.1]
[1743429325160,2.10240468,1818.6,1818.5,1.1]
[1743429325364,5.31020468,1818.6,1818.5,1.1]
[1743429325549,2.10240468,1818.6,1818.5,1.1]
[1743429326566,2.10240468,1818.6,1818.5,4.3078]
[1743429326759,4.68e-06,1818.6,1818.5,4.3078]
[1743429327357,4.68e-06,1818.6,1818.5,1.1]
[1743429327757,2.21540468,1818.6,1818.5,1.1]
[1743429327961,4.68e-06,1818.6,1818.5,4.3078]
[1743429328157,4.68e-06,1818.6,1818.5,3.403]
[1743429328360,4.68e-06,1818.6,1818.5,6.6108]
[1743429329266,4.68e-06,1818.6,1818.5,9.1108]
[1743429329461,4.68e-06,1818.6,1818.5,10.2224]
[1743429330764,4.68e-06,1818.6,1818.5,8.285]
[1743429331064,4.68e-06,1818.6,1818.5,11.4928]
[1743429331260,4.68e-06,1818.6,1818.5,13.9928]
[1743429332469,3.2078,1819.6,1819.5,1.0994]
[1743429332673,4.30715,1819.6,1819.4,1.09941]
[1743429332869,3.2078,1819.6,1819.5,1.0994]
[1743429333071,3.2078,1819.6,1819.2,2.184]
[1743429333371,1.09954,1819.3,1819.1,1.0996]
[1743429333572,5.3365,1819.2,1819.1,1.0996]
[1743429333776,2.1287,1819.2,1819.1,1.0996]
[1743429334482,5.4691,1819.5,1819.4,1.09946]
[1743429334676,0.00825468,1819.6,1819.5,1.0994]
[1743429335274,4.68e-06,1819.6,1819.5,1.0994]
[1743429335679,4.68e-06,1819.6,1819.5,3.301]
[1743429335973,4.68e-06,1819.6,1819.5,1.0994]
[1743429336177,4.68e-06,1819.6,1819.5,3.301]
[1743429338389,3.20780468,1819.6,1819.3,1.09949]
[1743429338679,3.2078,1819.4,1819.3,1.09948]
[1743429339184,3.2078,1819.4,1819.3,1.09952]
[1743429339185,5.3218,1819.4,1819.3,1.09952]
[1743429339386,7.4226,1819.4,1819.3,1.09952]
[1743429340780,3.2078,1819.4,1819.3,1.09952]
[1743429341183,4.68e-06,1819.6,1819.5,1.0994]
[1743429342483,3.20780468,1819.6,1819.5,1.0994]
[1743429342680,4.68e-06,1819.6,1819.5,1.0994]
[1743429343789,4.68e-06,1819.6,1819.5,6.8072]
[1743429343986,6.48e-06,1820.3,1820.2,1.09897]
[1743429344285,6.48e-06,1820.3,1820.2,5.98697]
[1743429344479,6.48e-06,1820.3,1820.2,8.48697]
[1743429344680,6.48e-06,1820.3,1820.2,12.96397]
[1743429344993,2.3145,1821.1,1821.0,1.09849]
[1743429345289,2.74441,1822.3,1821.1,1.09843]
[1743429345486,23.11680255,1821.2,1821.1,1.09843]
[1743429345883,2.1008,1821.5,1821.0,2.2383]
[1743429345884,3.2078,1821.4,1821.0,2.2383]
[1743429346192,2.3145,1821.7,1821.0,2.2383]
[1743429346390,3.2078,1821.6,1821.0,2.2383]
[1743429346586,3.2078,1821.6,1821.4,1.09823]
[1743429346783,3.2078,1821.6,1821.3,1.09827]
[1743429346989,3.2078,1821.4,1821.0,6.02745]
[1743429347196,2.32000784,1821.7,1820.5,61.37664]
[1743429347197,3.2078,1821.1,1820.8,1.09858]
[1743429347387,2.1084,1821.0,1820.6,7.1653]
[1743429347581,2.1084,1821.0,1820.9,1.09855]
[1743429347582,4.3502,1821.0,1820.9,1.09855]
[1743429347792,4.3502,1821.0,1820.7,2.189]
[1743429348092,4.3502,1821.0,1820.9,1.09855]
[1743429348292,4.3502,1821.0,1820.6,8.14305468]
[1743429348593,3.2078,1820.9,1820.6,3.21605468]
[1743429348794,3.2078,1820.9,1820.7,1.09867]
[1743429348795,2.2418,1820.8,1820.7,1.09867]
[1743429349589,2.2418,1820.8,1820.7,3.28767]
[1743429349991,2.1084,1821.0,1820.7,2.189]
[1743429350190,3.2078,1821.5,1820.8,3.2078]
[1743429350394,2.2418,1821.4,1821.3,1.09831]
[1743429351392,0.00550784,1821.7,1821.6,1.09813]
[1743429351602,0.00550784,1821.7,1821.6,4.30593]
[1743429351899,0.00550784,1821.7,1821.6,1.09813]
[1743429352595,0.00550784,1821.7,1821.6,3.59813]
[1743429352800,0.00550784,1821.7,1821.6,1.09813]
[1743429353001,0.00550784,1821.7,1821.6,3.59813]
[1743429353296,7.84e-06,1821.7,1821.6,1.09813]
[1743429353496,7.84e-06,1821.7,1821.6,3.43753]
[1743429353695,7.84e-06,1821.7,1821.6,1.09813]
[1743429353892,2.21240784,1821.7,1821.6,1.09813]
[1743429354207,2.21240784,1821.7,1821.5,1.09813]
[1743429354406,5.5632,1821.6,1821.5,1.09813]
[1743429354589,5.5632,1821.6,1821.3,4.965]
[1743429354800,3.2078,1821.4,1820.7,3.2078]
[1743429354998,2.2124,1821.3,1821.2,1.09837]
[1743429355495,3.2078,1821.5,1821.4,1.09825]
[1743429355695,5.4202,1821.5,1821.4,1.09825]
[1743429355893,4.5678,1821.6,1821.5,1.09819]
[1743429356104,7.84e-06,1821.7,1821.6,1.09813]
[1743429357299,7.84e-06,1821.7,1821.6,3.59813]
[1743429357603,3.2078,1822.5,1822.4,1.09765]
[1743429357802,5.48,1822.5,1822.4,1.09765]
[1743429358308,3.2078,1823.3,1822.3,3.2078]
[1743429358501,2.2722,1823.0,1822.9,1.09735]
[1743429359206,2.2722,1823.0,1822.6,7.24993068]
[1743429359394,2.2722,1823.0,1822.9,1.09735]
[1743429359599,2.2722,1823.0,1822.8,1.09737]
[1743429360008,2.2722,1823.0,1822.9,1.09735]
[1743429360804,4.30492,1823.3,1822.9,3.2078]
[1743429361110,3.2078,1823.1,1822.9,1.09732]
[1743429361306,4.30505,1823.1,1822.8,1.09738]
[1743429361501,2.1938,1823.0,1822.9,1.09735]
[1743429361707,5.5319,1823.1,1823.0,1.09729]
[1743429361909,4.5179,1823.1,1822.7,10.4735]
[1743429362205,4.5179,1823.1,1823.0,1.09729]
[1743429362609,2.1938,1823.1,1823.0,1.09729]
[1743429362796,2.3241,1823.6,1823.5,1.09698]
[1743429363104,2.3309,1823.7,1823.6,1.09692]
[1743429363404,6.63534,1824.1,1823.6,2.2795]
[1743429363613,6.63536,1824.1,1823.8,1.09676]
[1743429363812,3.2078,1823.9,1823.4,0.00823068]
[1743429363995,2.3309,1823.8,1823.5,1.09697]
[1743429364219,2.3309,1823.8,1823.4,0.00823068]
[1743429364220,3.2078,1823.7,1823.4,0.00823068]
[1743429364507,2.3241,1824.0,1823.5,2.74247]
[1743429364803,2.3309,1823.9,1823.8,1.0968]
[1743429365397,2.3309,1823.9,1823.4,1.10523068]
[1743429365603,3.2078,1823.7,1823.4,0.00823068]